bitfinex/quotes_BTCUSD_20230110
["timestamp","ask_amount","ask_price","bid_price","bid_amount"]
[1673388561545,2.38649674,17469.0,17468.0,2.24529336]
[1673388562048,2.3867175,17469.0,17468.0,2.24529336]
[1673388562297,2.38649674,17469.0,17468.0,2.24529336]
[1673388565132,3.53217921,17469.0,17468.0,2.24529336]
[1673388565383,3.89098621,17469.0,17468.0,2.24529336]
[1673388565866,3.89120697,17469.0,17468.0,2.24529336]
[1673388566628,3.89098621,17469.0,17468.0,2.24529336]
[1673388568158,3.89120697,17469.0,17468.0,2.24529336]
[1673388568407,2.74530374,17469.0,17468.0,2.24529336]
[1673388568702,2.38649674,17469.0,17468.0,2.24529336]
[1673388569390,2.3867175,17469.0,17468.0,2.24529336]
[1673388569639,2.38649674,17469.0,17468.0,2.24529336]
[1673388570929,2.3867175,17469.0,17468.0,2.24529336]
[1673388571231,2.38649674,17469.0,17468.0,2.24529336]
[1673388572669,2.3867175,17469.0,17468.0,2.24529336]
[1673388572918,2.38649674,17469.0,17468.0,2.24529336]
[1673388573371,2.74530374,17469.0,17468.0,2.24529336]
[1673388573601,2.7455245,17469.0,17468.0,2.24529336]
[1673388574096,2.38649674,17469.0,17468.0,2.24529336]
[1673388574609,2.3867175,17469.0,17468.0,2.24529336]
[1673388574863,3.53241005,17469.0,17468.0,2.24529336]
[1673388575182,3.89121705,17469.0,17468.0,2.24529336]
[1673388576186,2.7455245,17469.0,17468.0,2.24529336]
[1673388576431,2.3867175,17469.0,17468.0,2.24529336]
[1673388576685,2.38649674,17469.0,17468.0,2.24529336]
[1673388576928,2.3867175,17469.0,17468.0,2.24529336]
[1673388577377,2.38649674,17469.0,17468.0,2.24529336]
[1673388579082,2.38649674,17469.0,17468.0,2.2452307]
[1673388579569,1.87215752,17469.0,17468.0,2.2452307]
[1673388580970,1.87237828,17469.0,17468.0,2.2452307]
[1673388582270,2.45067849,17469.0,17468.0,2.2452307]
[1673388582516,3.10948549,17469.0,17468.0,2.2452307]
[1673388583046,3.63711787,17469.0,17468.0,2.2452307]
[1673388583293,3.74385969,17469.0,17468.0,2.2452307]
[1673388583543,3.21622731,17469.0,17468.0,2.2452307]
[1673388583797,2.07134331,17469.0,17468.0,2.2452307]
[1673388584047,3.21622731,17469.0,17468.0,2.2452307]
[1673388585305,4.36192641,17469.0,17468.0,2.2452307]
[1673388586525,4.30393588,17469.0,17468.0,2.2452307]
[1673388586753,4.36192641,17469.0,17468.0,2.2452307]
[1673388587455,4.06192641,17469.0,17468.0,2.2452307]
[1673388587971,2.91622731,17469.0,17468.0,2.2452307]
[1673388588258,2.3379271,17469.0,17468.0,2.2452307]
[1673388589491,2.91622731,17469.0,17468.0,2.2452307]
[1673388589745,3.21622731,17469.0,17468.0,2.2452307]
[1673388590255,3.21622731,17469.0,17468.0,2.2402307]
[1673388590772,3.15823678,17469.0,17468.0,2.2402307]
[1673388595396,4.30400245,17469.0,17468.0,2.2402307]
[1673388595641,4.59368833,17469.0,17468.0,2.2402307]
[1673388597854,3.27003336,17469.0,17468.0,2.2402307]
[1673388598104,3.79766574,17469.0,17468.0,2.2402307]
[1673388598876,3.27003336,17469.0,17468.0,2.2402307]
[1673388599125,3.15823678,17469.0,17468.0,2.2352307]
[1673388599381,3.74385969,17469.0,17468.0,2.2352307]
[1673388600911,3.21622731,17469.0,17468.0,2.2352307]
[1673388601662,3.21622731,17469.0,17468.0,2.2327967]
[1673388605059,5.90410983,17469.0,17468.0,2.2327967]
[1673388605371,6.19379571,17469.0,17468.0,2.2327967]
[1673388607361,3.44792266,17469.0,17468.0,2.2327967]
[1673388607614,3.15823678,17469.0,17468.0,2.2327967]
[1673388615755,4.30399375,17469.0,17468.0,2.2327967]
[1673388616010,4.59367963,17469.0,17468.0,2.2327967]
[1673388616258,4.01537942,17469.0,17468.0,2.2327967]
[1673388617023,4.07336995,17469.0,17468.0,2.2327967]
[1673388620940,2.6379271,17469.0,17468.0,2.2327967]
[1673388622794,1.8670004,17469.0,17468.0,2.2327967]
[1673388623057,1.8670004,17469.0,17468.0,2.45607637]
[1673388623335,1.28732335,17469.0,17468.0,2.45607637]
[1673388623848,1.28732335,17469.0,17468.0,2.45600557]
[1673388624097,1.80251094,17469.0,17468.0,2.45600557]
[1673388624368,1.28732335,17469.0,17468.0,2.45600557]
[1673388624638,1.80251394,17469.0,17468.0,2.45600557]
[1673388624889,2.45927274,17469.0,17468.0,2.2327259]
[1673388625145,1.94408215,17469.0,17468.0,2.2327259]
[1673388625404,2.8237592,17469.0,17468.0,2.2327259]
[1673388625656,3.1825662,17469.0,17468.0,2.2327259]
[1673388625953,4.32834699,17469.0,17468.0,2.2327259]
[1673388626162,4.32856775,17469.0,17468.0,2.2327259]
[1673388626427,4.02856775,17469.0,17468.0,2.2327259]
[1673388626992,4.32856775,17469.0,17468.0,2.2327259]
[1673388628016,4.02856775,17469.0,17468.0,2.2327259]
[1673388629032,4.02834699,17469.0,17468.0,2.2327259]
[1673388629540,3.08986294,17469.0,17468.0,2.2327259]
[1673388630546,3.0900837,17469.0,17468.0,2.2327259]
[1673388630796,3.08986294,17469.0,17468.0,2.2327259]
[1673388631562,1.94408215,17469.0,17468.0,2.2327259]
[1673388631811,1.94430291,17469.0,17468.0,2.2327259]
[1673388632296,1.94408215,17469.0,17468.0,2.2327259]
[1673388632543,2.45922864,17469.0,17468.0,2.2327259]
[1673388632787,2.45922864,17469.0,17468.0,2.24742964]
[1673388633006,1.94408215,17469.0,17468.0,2.24742964]
[1673388634531,2.45917376,17469.0,17468.0,2.24742964]
[1673388635758,3.60487894,17469.0,17468.0,2.24742964]
[1673388636250,3.6050997,17469.0,17468.0,2.24742964]
[1673388636497,3.96368594,17469.0,17468.0,2.24742964]
[1673388636753,4.25088559,17469.0,17468.0,2.24742964]
[1673388637249,2.74659417,17469.0,17468.0,2.24742964]
[1673388637501,2.81798076,17469.0,17468.0,2.24742964]
[1673388637986,2.45917376,17469.0,17468.0,2.24742964]
[1673388639024,2.59006799,17469.0,17468.0,2.24742964]
[1673388639276,2.23126099,17469.0,17468.0,2.24742964]
[1673388639492,1.94430291,17469.0,17468.0,2.24742964]
[1673388639738,1.94408215,17469.0,17468.0,2.24742964]
[1673388640519,2.4590865,17469.0,17468.0,2.24742964]
[1673388640784,2.4590865,17469.0,17468.0,2.24242964]
[1673388641787,1.94408215,17469.0,17468.0,2.24242964]
[1673388643037,1.94430291,17469.0,17468.0,2.24242964]
[1673388643285,1.94408215,17469.0,17468.0,2.24242964]
[1673388645754,1.94430291,17469.0,17468.0,2.24242964]
[1673388646000,1.94408215,17469.0,17468.0,2.24242964]
[1673388646247,3.08977872,17469.0,17468.0,2.24242964]
[1673388647011,3.08999948,17469.0,17468.0,2.24242964]
[1673388647583,3.44880648,17469.0,17468.0,2.24242964]
[1673388648080,3.08977872,17469.0,17468.0,2.24242964]
[1673388648334,3.08999948,17469.0,17468.0,2.24242964]
[1673388648586,1.94430291,17469.0,17468.0,2.24242964]
[1673388649076,1.94408215,17469.0,17468.0,2.24242964]
[1673388651636,2.24408215,17469.0,17468.0,2.24242964]
[1673388651893,3.18278696,17469.0,17468.0,2.24242964]
[1673388652935,2.82397996,17469.0,17468.0,2.24242964]
[1673388653449,3.18278696,17469.0,17468.0,2.24242964]
[1673388653954,2.16722116,17469.0,17468.0,2.24242964]
[1673388654249,3.13073829,17469.0,17468.0,1.527624]
[1673388654501,3.13523693,17469.0,17468.0,1.527624]
[1673388654770,3.19322746,17469.0,17468.0,1.51292026]
[1673388655802,2.66109644,17469.0,17468.0,1.51292026]
[1673388656065,3.80680987,17469.0,17468.0,1.51292026]
[1673388656567,3.96936493,17469.0,17468.0,1.51292026]
[1673388656835,4.65143999,17469.0,17468.0,1.51292026]
[1673388657089,4.99660936,17469.0,17468.0,1.51292026]
[1673388657355,5.66267932,17469.0,17468.0,1.51292026]
[1673388657690,4.51696589,17469.0,17468.0,1.51292026]
[1673388657886,3.85089593,17469.0,17468.0,1.52836817]
[1673388658156,3.56371709,17469.0,17468.0,1.52836817]
[1673388658983,3.50572656,17469.0,17468.0,1.52836817]
[1673388659705,4.01418329,17469.0,17468.0,1.52836817]
[1673388659956,3.50572656,17469.0,17468.0,1.52836817]
[1673388660462,4.17122299,17469.0,17468.0,1.52836817]
[1673388660753,4.45840183,17469.0,17468.0,1.52836817]
[1673388660983,4.0035994,17469.0,17468.0,1.52336817]
[1673388661233,3.71642056,17469.0,17468.0,1.52336817]
[1673388662254,3.10891466,17469.0,17468.0,1.52336817]
[1673388662770,3.05092413,17469.0,17468.0,1.52336817]
[1673388663029,3.2776226,17469.0,17468.0,0.94987156]
[1673388663291,3.95967592,17469.0,17468.0,0.23760756]
[1673388663553,0.2,17468.0,17464.0,0.00015]
[1673388663861,0.2,17468.0,17460.0,0.3258]
[1673388663862,0.2,17464.0,17460.0,0.70953427]
[1673388664150,0.42838635,17461.0,17460.0,0.70953427]
[1673388664409,1.16979829,17461.0,17458.0,0.2]
[1673388664680,0.59707349,17460.0,17459.0,0.50533526]
[1673388664933,1.34117335,17460.0,17459.0,0.50533526]
[1673388665181,1.17246541,17460.0,17459.0,0.50533526]
[1673388665452,1.31665637,17460.0,17459.0,0.50533526]
[1673388665709,1.30516881,17460.0,17456.0,0.21449425]
[1673388665968,0.16870794,17459.0,17456.0,0.21449425]
[1673388666221,0.16870794,17458.0,17457.0,0.56010654]
[1673388666512,1.27122182,17459.0,17457.0,0.91891354]
[1673388666931,1.145564,17459.0,17458.0,0.358807]
[1673388666934,1.87529388,17459.0,17456.0,0.21449425]
[1673388667187,1.31674637,17459.0,17457.0,0.56360517]
[1673388667449,0.00022076,17458.0,17456.0,0.24949425]
[1673388667706,0.00022076,17458.0,17457.0,0.70041342]
[1673388667978,1.145564,17459.0,17457.0,0.70041342]
[1673388667979,0.013,17459.0,17458.0,0.66414489]
[1673388668245,1.09629296,17460.0,17458.0,0.76644008]
[1673388668508,0.01322076,17459.0,17458.0,0.76644008]
[1673388668764,0.00022076,17459.0,17458.0,0.76644008]
[1673388669557,0.00022076,17459.0,17458.0,0.80144008]
[1673388669817,0.71310068,17459.0,17458.0,0.80144008]
[1673388670357,0.71310068,17459.0,17458.0,0.76644008]
[1673388670656,0.72587992,17459.0,17458.0,0.80144008]
[1673388671688,0.72610068,17459.0,17458.0,0.80144008]
[1673388672189,0.72587992,17459.0,17458.0,0.80144008]
[1673388672702,0.72610068,17459.0,17458.0,0.80144008]
[1673388674775,0.72587992,17459.0,17458.0,0.80144008]
[1673388675020,0.72610068,17459.0,17458.0,0.80144008]
[1673388675270,0.72587992,17459.0,17458.0,0.69914489]
[1673388677047,0.71087992,17459.0,17458.0,0.69914489]
[1673388678581,1.28364992,17459.0,17458.0,0.69914489]
[1673388678833,1.28387068,17459.0,17458.0,0.69914489]
[1673388679092,1.28387068,17459.0,17458.0,0.76905938]
[1673388680378,1.28364992,17459.0,17458.0,0.76905938]
[1673388681151,0.71087992,17459.0,17458.0,0.76905938]
[1673388682420,0.013,17459.0,17458.0,0.76905938]
[1673388682714,0.01322076,17459.0,17458.0,0.76905938]
[1673388683514,0.013,17459.0,17458.0,0.76905938]
[1673388683700,0.013,17459.0,17458.0,1.12786638]
[1673388689062,0.013,17459.0,17458.0,1.12809527]
[1673388689286,0.013,17459.0,17458.0,1.12786638]
[1673388694546,0.013,17459.0,17458.0,1.12800883]
[1673388694809,0.013,17459.0,17458.0,1.12777994]
[1673388695574,0.013,17459.0,17458.0,1.12800883]
[1673388697348,0.013,17459.0,17458.0,1.12777994]
[1673388697820,0.18418237,17459.0,17458.0,1.12777994]
[1673388698072,0.18418237,17459.0,17458.0,0.76897294]
[1673388698587,0.18418237,17459.0,17458.0,1.12777994]
[1673388698813,0.18418237,17459.0,17458.0,0.76897294]
[1673388699287,0.18440313,17459.0,17458.0,0.76897294]
[1673388699995,0.61294917,17459.0,17458.0,0.76897294]
[1673388700257,0.61272841,17459.0,17458.0,0.76897294]
[1673388700775,0.61272841,17459.0,17458.0,0.76920183]
[1673388701025,0.61272841,17459.0,17458.0,1.12777994]
[1673388701298,0.61294917,17459.0,17458.0,1.12777994]
[1673388701549,0.61294917,17459.0,17458.0,0.76897294]
[1673388702055,0.61294917,17459.0,17458.0,1.12777994]
[1673388702309,0.61272841,17459.0,17458.0,1.12800883]
[1673388702596,0.61272841,17459.0,17458.0,1.12777994]
[1673388703065,0.61272841,17459.0,17458.0,0.70897294]
[1673388703891,0.82633134,17459.0,17458.0,0.70897294]
[1673388704365,1.0415324,17459.0,17458.0,0.70897294]
[1673388704644,0.78409544,17459.0,17458.0,0.70897294]
[1673388705390,0.82633135,17459.0,17458.0,0.70897294]
[1673388705644,0.78409544,17459.0,17458.0,0.70897294]
[1673388707161,0.7843162,17459.0,17458.0,0.70897294]
[1673388707407,0.82633222,17459.0,17458.0,0.70897294]
[1673388708136,0.4838439,17459.0,17458.0,0.70897294]
[1673388708381,0.48362314,17459.0,17458.0,0.70897294]
[1673388709403,0.82688555,17459.0,17458.0,0.70897294]
[1673388710128,0.48362314,17459.0,17458.0,0.70897294]
[1673388710637,0.4838439,17459.0,17458.0,0.70897294]
[1673388712422,1.97307898,17459.0,17458.0,0.70897294]
[1673388712670,1.97329974,17459.0,17458.0,0.70897294]
[1673388712922,1.97307898,17459.0,17458.0,0.70897294]
[1673388713641,1.97329974,17459.0,17458.0,0.70897294]
[1673388714913,1.93106296,17459.0,17458.0,0.70897294]
[1673388715177,1.97329995,17459.0,17458.0,0.70897294]
[1673388715427,0.82710001,17459.0,17458.0,0.70897294]
[1673388715940,0.78486302,17459.0,17458.0,0.70897294]
[1673388716219,0.82709996,17459.0,17458.0,0.70897294]
[1673388719286,0.8268792,17459.0,17458.0,0.70897294]
[1673388720308,0.78464226,17459.0,17458.0,0.70897294]
[1673388720557,0.61374855,17459.0,17458.0,0.70897294]
[1673388720819,0.013,17459.0,17458.0,1.81234979]
[1673388721331,0.013,17459.0,17458.0,2.01234979]
[1673388721544,1.1591767,17459.0,17458.0,2.01234979]
[1673388721832,1.1591767,17459.0,17458.0,2.58515279]
[1673388725664,1.1591767,17459.0,17458.0,2.41361483]
[1673388726688,0.013,17459.0,17458.0,2.41361483]
[1673388728928,0.008,17459.0,17458.0,2.41361483]
[1673388731921,0.008,17459.0,17458.0,1.84081183]
[1673388735647,0.008,17459.0,17458.0,2.41361483]
[1673388740410,0.00787691,17459.0,17458.0,2.41361483]
[1673388740670,0.00787691,17459.0,17458.0,2.94130119]
[1673388740929,0.00787691,17459.0,17458.0,2.41361483]
[1673388751982,0.00787691,17459.0,17458.0,2.58538168]
[1673388752754,0.00787691,17459.0,17458.0,2.41361483]
[1673388753006,0.00787691,17459.0,17458.0,1.84081183]
[1673388753510,0.00787691,17459.0,17458.0,2.01257868]
[1673388753728,0.00787691,17459.0,17458.0,2.58538168]
[1673388754777,0.00787691,17459.0,17458.0,2.41361483]
[1673388755564,0.00787691,17459.0,17458.0,2.58538168]
[1673388755835,0.00787691,17459.0,17458.0,2.41361483]
[1673388757410,0.00787691,17459.0,17458.0,2.58538168]
[1673388759209,0.00787691,17459.0,17458.0,2.5752709]
[1673388759462,0.42916409,17461.0,17459.0,0.84909288]
[1673388759713,0.42916409,17461.0,17460.0,0.44371629]
[1673388759714,0.17167144,17461.0,17460.0,0.44371629]
[1673388760981,0.18567144,17461.0,17460.0,0.49071629]
[1673388761481,0.18067144,17461.0,17460.0,0.49071629]
[1673388761746,0.18067144,17461.0,17460.0,0.13190929]
[1673388762013,0.61474855,17461.0,17460.0,0.49071629]
[1673388762258,0.61474855,17461.0,17460.0,0.13190929]
[1673388764563,0.61496931,17461.0,17460.0,0.13190929]
[1673388764816,0.61474855,17461.0,17460.0,0.13190929]
[1673388765332,0.61474855,17461.0,17460.0,0.64718124]
[1673388765584,0.27149265,17461.0,17460.0,0.64718124]
[1673388766894,0.014,17461.0,17460.0,0.64718124]
[1673388767666,0.014,17461.0,17460.0,1.00598824]
[1673388768441,0.014,17461.0,17460.0,0.64718124]
[1673388769221,0.014,17461.0,17460.0,1.00598824]
[1673388769452,0.014,17461.0,17460.0,0.64718124]
[1673388770192,0.014,17461.0,17460.0,0.58365209]
[1673388770484,0.014,17461.0,17460.0,1.51519609]
[1673388770999,0.014,17461.0,17460.0,1.71519609]
[1673388771254,0.01387223,17461.0,17460.0,1.71519609]
[1673388771508,0.18554999,17461.0,17460.0,1.71519609]
[1673388772814,0.44304264,17461.0,17460.0,1.51519609]
[1673388773095,0.18554999,17461.0,17460.0,1.51519609]
[1673388773910,0.18554999,17461.0,17460.0,1.53075249]
[1673388774164,0.44304264,17461.0,17460.0,1.53075249]
[1673388774439,0.18554999,17461.0,17460.0,1.53075249]
[1673388774695,0.44304264,17461.0,17460.0,1.53075249]
[1673388774955,0.18554999,17461.0,17460.0,1.53075249]
[1673388775235,0.44304264,17461.0,17460.0,1.53075249]
[1673388775474,0.18554999,17461.0,17460.0,1.53075249]
[1673388776228,0.44304264,17461.0,17460.0,1.53075249]
[1673388776490,0.44304264,17461.0,17460.0,0.95801549]
[1673388777037,0.4432634,17461.0,17460.0,0.95801549]
[1673388777285,0.44304264,17461.0,17460.0,0.95801549]
[1673388777559,0.44304264,17461.0,17460.0,0.59920849]
[1673388778297,0.44304264,17461.0,17460.0,0.95801549]
[1673388779279,0.44304264,17461.0,17460.0,0.59920849]
[1673388780236,0.44304264,17461.0,17460.0,0.57782835]
[1673388780988,0.4432634,17461.0,17460.0,0.57782835]
[1673388781240,0.44304264,17461.0,17460.0,0.57782835]
[1673388781458,0.44304264,17461.0,17460.0,0.93663535]
[1673388787841,0.25732162,17461.0,17460.0,0.93663535]
[1673388788088,0.25732162,17461.0,17460.0,1.28609664]
[1673388789835,0.25754238,17461.0,17460.0,1.28609664]
[1673388790083,0.25732162,17461.0,17460.0,1.28609664]
[1673388790833,0.25754238,17461.0,17460.0,1.28609664]
[1673388791052,0.25732162,17461.0,17460.0,1.28609664]
[1673388791515,0.25732162,17461.0,17460.0,0.92728964]
[1673388792806,0.25754238,17461.0,17460.0,0.92728964]
[1673388793072,0.25732162,17461.0,17460.0,0.92728964]
[1673388798053,0.25754238,17461.0,17460.0,0.92728964]
[1673388798299,0.25732162,17461.0,17460.0,0.92728964]
[1673388800305,0.25754238,17461.0,17460.0,1.28609664]
[1673388800561,0.25732162,17461.0,17460.0,1.28609664]
[1673388802563,0.60057752,17461.0,17460.0,1.28609664]
[1673388803018,0.60057752,17461.0,17460.0,1.08609664]
[1673388804332,0.60079828,17461.0,17460.0,1.08609664]
[1673388805090,0.60057752,17461.0,17460.0,1.08609664]
[1673388805337,0.60057752,17461.0,17460.0,1.08859337]
[1673388805596,0.60057752,17461.0,17460.0,1.08609664]
[1673388807678,0.60079828,17461.0,17460.0,1.08609664]
[1673388807944,0.60057752,17461.0,17460.0,0.72728964]
[1673388808574,0.60057752,17461.0,17460.0,1.08609664]
[1673388810080,0.60079828,17461.0,17460.0,1.08599253]
[1673388810336,0.60079828,17461.0,17460.0,0.72718553]
[1673388810934,0.60057752,17461.0,17460.0,0.72718553]
[1673388811373,0.60057752,17461.0,17460.0,1.08599253]
[1673388812181,0.60057752,17461.0,17460.0,1.08611735]
[1673388812639,0.60057752,17461.0,17460.0,0.72731035]
[1673388813929,0.60057752,17461.0,17460.0,0.72718553]
[1673388814901,0.60057752,17461.0,17460.0,0.72731035]
[1673388815123,0.60057752,17461.0,17460.0,1.08611735]
[1673388815367,0.60057752,17461.0,17460.0,1.08599253]
[1673388816836,0.60079828,17461.0,17460.0,1.08599253]
[1673388817065,0.60079828,17461.0,17460.0,0.72718553]
[1673388817880,0.77186302,17461.0,17460.0,0.72718553]
[1673388819555,0.77186302,17461.0,17460.0,0.57772424]
[1673388819813,1.96013763,17461.0,17460.0,0.57772424]
[1673388820383,1.95991687,17461.0,17460.0,0.57784906]
[1673388820639,1.95991687,17461.0,17460.0,0.57772424]
[1673388820889,1.85315797,17461.0,17460.0,0.57772424]
[1673388821153,1.85315797,17461.0,17460.0,0.63549666]
[1673388821414,1.85315797,17461.0,17460.0,0.63562148]
[1673388821671,1.85315797,17461.0,17460.0,0.63549666]
[1673388822943,0.70716418,17461.0,17460.0,0.63549666]
[1673388823769,0.70716418,17461.0,17460.0,0.63562148]
[1673388823958,0.70738494,17461.0,17460.0,0.63549666]
[1673388824204,0.70716418,17461.0,17460.0,0.63549666]
[1673388825432,0.70715278,17461.0,17460.0,0.63549666]
[1673388825932,0.70737354,17461.0,17460.0,0.63549666]
[1673388826181,0.70715278,17461.0,17460.0,0.63549666]
[1673388826688,0.49412597,17461.0,17460.0,0.63549666]
[1673388828169,0.49412597,17461.0,17460.0,0.63563579]
[1673388829420,1.6401659,17461.0,17460.0,0.63563579]
[1673388829670,1.6401659,17461.0,17460.0,0.63549666]
[1673388830484,1.64038666,17461.0,17460.0,0.06245229]
[1673388830711,1.85341096,17461.0,17460.0,0.06245229]
[1673388830971,0.70737103,17461.0,17460.0,0.06245229]
[1673388831219,0.70715027,17461.0,17460.0,0.06245229]
[1673388832578,0.70737103,17461.0,17460.0,0.06245229]
[1673388832833,0.66488336,17461.0,17460.0,0.15136556]
[1673388833058,0.66488336,17461.0,17460.0,0.15189552]
[1673388833310,0.70714775,17461.0,17460.0,0.15136556]
[1673388833843,0.66488336,17461.0,17460.0,0.15136556]
[1673388834151,0.49410239,17461.0,17460.0,0.15189552]
[1673388834353,0.49410239,17461.0,17460.0,0.15136556]
[1673388834823,0.92248875,17461.0,17460.0,0.15136556]
[1673388835348,0.49432315,17461.0,17460.0,0.15136556]
[1673388835570,0.70736894,17461.0,17460.0,0.06245229]
[1673388837928,0.47087194,17461.0,17460.0,0.06245229]
[1673388840101,2.18960394,17461.0,17460.0,0.06236924]
[1673388840360,3.34160446,17461.0,17460.0,0.06236924]
[1673388840645,3.4859221,17461.0,17460.0,0.06236924]
[1673388840907,4.35879273,17461.0,17460.0,0.06236924]
[1673388841169,4.41678326,17461.0,17460.0,0.06236924]
[1673388841473,4.35879273,17461.0,17460.0,0.06044024]
[1673388841942,3.4859221,17461.0,17460.0,0.06044024]
[1673388842201,3.8447291,17461.0,17460.0,0.06044024]
[1673388842974,3.4859221,17461.0,17460.0,0.06044024]
[1673388843288,3.8447291,17461.0,17460.0,0.06044024]
[1673388843805,3.4859221,17461.0,17460.0,0.06044024]
[1673388844055,2.6987011,17461.0,17460.0,0.06044024]
[1673388844306,2.3398941,17461.0,17460.0,0.06044024]
[1673388845566,2.6987011,17461.0,17460.0,0.06044024]
[1673388846563,3.12779923,17461.0,17460.0,0.06044024]
[1673388846819,2.6987011,17461.0,17460.0,0.06044024]
[1673388849648,2.3398941,17461.0,17460.0,0.06044024]
[1673388850172,4.65889056,17461.0,17460.0,0.06044024]
[1673388851454,4.5732757,17461.0,17460.0,0.06044024]
[1673388851959,5.11306422,17461.0,17460.0,0.06044024]
[1673388852474,4.56990496,17461.0,17460.0,0.06044024]
[1673388853483,3.42377913,17461.0,17460.0,0.06044024]
[1673388855005,3.53976019,17461.0,17460.0,0.06044024]
[1673388855297,3.48176966,17461.0,17460.0,0.06044024]
[1673388856306,2.94198114,17461.0,17460.0,0.06044024]
[1673388856565,3.64950142,17461.0,17460.0,0.06044024]
[1673388859107,3.59151089,17461.0,17460.0,0.06044024]
[1673388860867,4.7377454,17461.0,17460.0,0.06044024]
[1673388862378,5.29458919,17461.0,17460.0,0.06044024]
[1673388865086,4.7377454,17461.0,17460.0,0.06044024]
[1673388865341,3.59151089,17461.0,17460.0,0.06032676]
[1673388869068,3.64950142,17461.0,17460.0,0.06032676]
[1673388870880,4.7957269,17461.0,17460.0,0.06032676]
[1673388871132,5.0457269,17461.0,17460.0,0.06032676]
[1673388873455,4.68566841,17461.0,17460.0,0.06032676]
[1673388873710,5.04618606,17461.0,17460.0,0.06032676]
[1673388874219,5.20019024,17461.0,17460.0,0.06032676]
[1673388874476,4.68566745,17461.0,17460.0,0.06032676]
[1673388874726,3.53944197,17461.0,17460.0,0.06032676]
[1673388874974,3.38543779,17461.0,17460.0,0.06032676]
[1673388875488,3.53944197,17461.0,17460.0,0.06032676]
[1673388878040,4.11780738,17461.0,17460.0,0.06032676]
[1673388880623,5.26407543,17461.0,17460.0,0.06032676]
[1673388881410,6.88069765,17461.0,17460.0,0.06032676]
[1673388882682,5.7344296,17461.0,17460.0,0.06032676]
[1673388882934,5.67643907,17461.0,17460.0,0.06032676]
[1673388883181,5.7344296,17461.0,17460.0,0.06032676]
[1673388884708,6.31382066,17461.0,17460.0,0.06032676]
[1673388885210,5.7344296,17461.0,17460.0,0.06032676]
[1673388885971,5.02690932,17461.0,17460.0,0.06032676]
[1673388886729,5.02690932,17461.0,17460.0,0.05429409]
[1673388887274,5.71176146,17461.0,17460.0,0.05429409]
[1673388889803,4.09513924,17461.0,17460.0,0.05429409]
[1673388890049,4.61919296,17461.0,17460.0,0.05429409]
[1673388890818,6.80357393,17461.0,17460.0,0.03873769]
[1673388891115,6.11872179,17461.0,17460.0,0.03873769]
[1673388891388,6.80752581,17461.0,17460.0,0.03873769]
[1673388891619,7.38690377,17461.0,17460.0,0.03873769]
[1673388891873,6.68110285,17461.0,17460.0,0.03873769]
[1673388892151,6.11872179,17461.0,17460.0,0.03873769]
[1673388892434,6.66074462,17461.0,17460.0,0.03873769]
[1673388893980,3.89799824,17461.0,17460.0,0.03873769]
[1673388894494,4.32330391,17461.0,17460.0,0.03873769]
[1673388894746,3.89799824,17461.0,17460.0,0.03873769]
[1673388895035,3.35597541,17461.0,17460.0,0.03873769]
[1673388896758,2.83192169,17461.0,17460.0,0.04984852]
[1673388897018,2.67791751,17461.0,17460.0,0.04984852]
[1673388897558,3.21989126,17461.0,17460.0,0.04984852]
[1673388898045,2.83192169,17461.0,17460.0,0.04984852]
[1673388898301,2.67791751,17461.0,17460.0,0.04984852]
[1673388898557,3.06024906,17461.0,17460.0,0.04984852]
[1673388898833,3.46178549,17461.0,17460.0,0.04984852]
[1673388899342,2.83192169,17461.0,17460.0,0.04984852]
[1673388899599,3.43486487,17461.0,17460.0,0.04984852]
[1673388899864,2.83192169,17461.0,17460.0,0.04984852]
[1673388900161,3.1843897,17461.0,17460.0,0.04984852]
[1673388900416,2.83192169,17461.0,17460.0,0.04984852]
[1673388900671,5.01118352,17461.0,17460.0,0.04984852]
[1673388900927,6.31151568,17461.0,17460.0,0.04984852]
[1673388901443,6.1154445,17461.0,17460.0,0.04984852]
[1673388901739,5.59261204,17461.0,17460.0,0.04984852]
[1673388903082,5.9781856,17461.0,17460.0,0.04984852]
[1673388903615,4.36139223,17461.0,17460.0,0.04984852]
[1673388903894,3.21506425,17461.0,17460.0,0.04984852]
[1673388904178,3.06106007,17461.0,17460.0,0.04984852]
[1673388904444,2.82949069,17461.0,17460.0,0.04984852]
[1673388904693,2.67548651,17461.0,17460.0,0.04984852]
[1673388904939,2.67548651,17461.0,17460.0,0.03644218]
[1673388906472,2.82949069,17461.0,17460.0,0.03644218]
[1673388906731,2.67548651,17461.0,17460.0,0.03644218]
[1673388906984,2.67548651,17461.0,17460.0,0.03279797]
[1673388908255,3.22697956,17461.0,17460.0,0.03279797]
[1673388908512,3.07297538,17461.0,17460.0,0.03279797]
[1673388909562,2.67548651,17461.0,17460.0,0.03279797]
[1673388910705,2.68398651,17461.0,17460.0,0.03279797]
[1673388910998,4.28401607,17461.0,17460.0,0.03279797]
[1673388911256,4.43802025,17461.0,17460.0,0.03279797]
[1673388912586,3.29159069,17461.0,17460.0,0.03279797]
[1673388912834,3.19864914,17461.0,17460.0,0.02416753]
[1673388913113,3.35265332,17461.0,17460.0,0.02416753]
[1673388913372,3.80808443,17461.0,17456.0,0.01449425]
[1673388913629,0.57900557,17457.0,17456.0,0.01449425]
[1673388913882,4.15490606,17457.0,17456.0,0.01449425]
[1673388914134,4.04418865,17457.0,17456.0,0.01449425]
[1673388914379,3.00814153,17457.0,17456.0,0.01449425]
[1673388914651,3.71503592,17457.0,17456.0,0.01449425]
[1673388915136,3.71503592,17457.0,17456.0,0.03149425]
[1673388915357,3.71503592,17457.0,17456.0,0.01449425]
[1673388915602,3.72803592,17457.0,17456.0,0.61618631]
[1673388915902,3.72803592,17457.0,17456.0,0.03149425]
[1673388916405,4.87766862,17457.0,17456.0,0.03149425]
[1673388916898,4.51845836,17457.0,17456.0,0.03149425]
[1673388917144,4.62532667,17457.0,17456.0,0.03149425]
[1673388917437,4.2009638,17457.0,17456.0,0.03149425]
[1673388917683,4.04075586,17457.0,17456.0,0.02834483]
[1673388917991,3.88565865,17457.0,17456.0,0.02834483]
[1673388918191,4.04075586,17457.0,17456.0,0.02834483]
[1673388918469,3.92088755,17457.0,17456.0,0.01134483]
[1673388919268,3.92088755,17457.0,17456.0,0.02634483]
[1673388919269,3.93488755,17457.0,17456.0,0.02634483]
[1673388919443,4.02421068,17457.0,17456.0,0.02634483]
[1673388919724,4.3366331,17457.0,17456.0,0.02634483]
[1673388919980,4.49173031,17457.0,17456.0,0.02634483]
[1673388921985,5.63826453,17457.0,17456.0,0.02634483]
[1673388922986,5.63820453,17457.0,17456.0,0.02634483]
[1673388924305,6.21759559,17457.0,17456.0,0.02634483]
[1673388924563,5.63820453,17457.0,17456.0,0.02634483]
[1673388925840,0.00704837,17455.0,17453.0,0.01744957]
[1673388926128,2.907538,17454.0,17453.0,0.01744957]
[1673388926364,3.76678795,17454.0,17453.0,0.01744957]
[1673388926900,4.30164977,17454.0,17453.0,0.01744957]
[1673388927118,4.02842337,17454.0,17453.0,0.01744957]
[1673388927376,4.05303117,17454.0,17453.0,0.01744957]
[1673388927593,4.68971842,17454.0,17453.0,0.01744957]